bitfinex/quotes_BTCUSD_20251027
["timestamp","ask_amount","ask_price","bid_price","bid_amount"]
[1761582814508,0.01441667,115420.0,115410.0,0.7534652]
[1761582814762,0.01441667,115420.0,115410.0,1.29229001]
[1761582815185,0.01524049,115420.0,115410.0,1.29229001]
[1761582815738,0.01524049,115420.0,115410.0,0.9059052]
[1761582815945,0.18852068,115420.0,115410.0,1.29229001]
[1761582816150,0.18852068,115420.0,115410.0,0.9059052]
[1761582816401,0.01524049,115420.0,115410.0,0.9059052]
[1761582816602,0.01524049,115420.0,115410.0,1.29229001]
[1761582817241,0.01524049,115420.0,115410.0,1.38210902]
[1761582818048,0.01524049,115420.0,115410.0,1.29229001]
[1761582818432,0.01524049,115420.0,115410.0,0.9059052]
[1761582818693,0.01524049,115420.0,115410.0,2.01841383]
[1761582818892,0.11998,115440.0,115430.0,0.17326518]
[1761582819094,0.07046454,115440.0,115430.0,1.20053381]
[1761582819297,0.07046454,115440.0,115430.0,1.58178381]
[1761582819497,0.07046454,115440.0,115430.0,1.23202128]
[1761582819701,0.07046454,115440.0,115430.0,1.10043615]
[1761582819908,0.07046454,115440.0,115430.0,1.25335615]
[1761582820522,0.07146454,115440.0,115430.0,1.25335615]
[1761582820728,0.07146454,115440.0,115430.0,0.86697134]
[1761582820928,0.07146454,115440.0,115430.0,1.25335615]
[1761582821410,0.07146454,115440.0,115430.0,1.195839]
[1761582821974,0.07146454,115440.0,115430.0,0.80945419]
[1761582822316,0.07146454,115440.0,115430.0,1.195839]
[1761582823008,0.07146454,115440.0,115430.0,1.583879]
[1761582823200,0.07146454,115440.0,115430.0,1.812519]
[1761582823348,0.07146454,115440.0,115430.0,1.90233801]
[1761582824181,0.07146454,115440.0,115430.0,1.5159532]
[1761582824383,0.07146454,115440.0,115430.0,1.90233801]
[1761582824586,0.0718763,115440.0,115430.0,1.90233801]
[1761582825728,0.0718763,115440.0,115430.0,1.5159532]
[1761582825948,0.0718763,115440.0,115430.0,1.42613419]
[1761582826139,0.0718763,115440.0,115430.0,1.812519]
[1761582827296,0.0718763,115440.0,115430.0,1.42613419]
[1761582827516,0.0718763,115440.0,115430.0,1.812519]
[1761582828644,0.24512647,115440.0,115430.0,1.24623518]
[1761582828861,0.26161647,115440.0,115430.0,0.88158518]
[1761582829273,0.24512647,115440.0,115430.0,0.90623518]
[1761582829487,0.0718763,115440.0,115430.0,0.90623518]
[1761582829700,0.0718763,115440.0,115430.0,1.382439]
[1761582829881,0.24512647,115440.0,115430.0,1.29261999]
[1761582830186,0.0718763,115440.0,115430.0,0.90623518]
[1761582830387,0.24512647,115440.0,115430.0,0.90623518]
[1761582830589,0.24512647,115440.0,115430.0,0.73297]
[1761582830798,0.24512647,115440.0,115430.0,0.90623518]
[1761582831433,0.26161647,115440.0,115430.0,0.88158518]
[1761582831861,0.0718763,115440.0,115430.0,0.90623518]
[1761582832075,0.24512647,115440.0,115430.0,0.86938518]
[1761582832287,0.24512647,115440.0,115430.0,0.70762]
[1761582832501,0.2531968,115440.0,115430.0,0.88088518]
[1761582832721,0.2531968,115440.0,115430.0,0.90553518]
[1761582833200,0.2531968,115440.0,115430.0,0.82208901]
[1761582833403,0.2531968,115440.0,115430.0,0.90553518]
[1761582834614,0.07994663,115440.0,115430.0,1.29191999]
[1761582834927,0.2531968,115440.0,115430.0,1.29191999]
[1761582835131,0.2531968,115440.0,115430.0,0.90553518]
[1761582835652,0.2696868,115440.0,115430.0,0.70762]
[1761582835998,0.34002703,115440.0,115430.0,0.67952]
[1761582836209,0.38318581,115440.0,115430.0,0.67952]
[1761582836814,0.35850581,115440.0,115430.0,0.67952]
[1761582837016,0.38218581,115440.0,115430.0,0.67952]
[1761582837436,0.35850581,115440.0,115430.0,0.70762]
[1761582837851,0.34201581,115440.0,115430.0,0.70762]
[1761582838070,0.2521968,115440.0,115430.0,0.90523518]
[1761582838287,0.2682468,115440.0,115430.0,0.86428518]
[1761582838506,0.2531968,115440.0,115430.0,0.90483518]
[1761582838920,0.2521968,115440.0,115430.0,0.90483518]
[1761582839128,0.2531968,115440.0,115430.0,0.90483518]
[1761582840366,0.2521968,115440.0,115430.0,0.90483518]
[1761582840571,0.07894663,115440.0,115430.0,0.90483518]
[1761582840809,0.2521968,115440.0,115430.0,0.90483518]
[1761582841364,0.07894663,115440.0,115430.0,1.29121999]
[1761582842668,0.07894663,115440.0,115430.0,1.29421999]
[1761582842876,0.07894663,115440.0,115430.0,0.90483518]
[1761582843239,0.07894663,115440.0,115430.0,0.90783518]
[1761582843438,0.2521968,115440.0,115430.0,0.90783518]
[1761582843640,0.2521968,115440.0,115430.0,0.88348518]
[1761582843846,0.2682468,115440.0,115430.0,0.88348518]
[1761582844065,0.07894663,115440.0,115430.0,0.90783518]
[1761582844263,0.07894663,115440.0,115430.0,0.87198518]
[1761582844490,0.07894663,115440.0,115430.0,0.90785518]
[1761582844658,0.2521968,115440.0,115430.0,0.90785518]
[1761582844857,0.2672068,115440.0,115430.0,0.82786518]
[1761582845086,0.11698663,115440.0,115430.0,0.85254518]
[1761582845288,0.07894663,115440.0,115430.0,0.86799518]
[1761582845519,0.07894663,115440.0,115430.0,0.90609518]
[1761582845731,0.07894663,115440.0,115430.0,0.90309518]
[1761582846142,0.07894663,115440.0,115430.0,0.99291419]
[1761582846352,0.07894663,115440.0,115430.0,0.90309518]
[1761582847090,0.07894663,115440.0,115430.0,1.28947999]
[1761582847448,0.07894663,115440.0,115430.0,1.62947999]
[1761582847657,0.07894663,115440.0,115430.0,1.719299]
[1761582848285,0.07894663,115440.0,115430.0,1.33291419]
[1761582848492,0.07894663,115440.0,115430.0,1.719299]
[1761582848707,0.07894663,115440.0,115430.0,1.33791419]
[1761582849158,0.07894663,115440.0,115430.0,1.724299]
[1761582849354,0.07894663,115440.0,115430.0,0.31889518]
[1761582849554,0.07894663,115440.0,115430.0,0.88432518]
[1761582849762,0.07894663,115440.0,115430.0,0.90813518]
[1761582849968,0.07894663,115440.0,115430.0,0.90313518]
[1761582850172,0.2521968,115440.0,115430.0,0.90313518]
[1761582850597,0.2902368,115440.0,115430.0,0.85258518]
[1761582850779,0.2521968,115440.0,115430.0,0.90313518]
[1761582851967,0.07894663,115440.0,115430.0,1.28951999]
[1761582852555,0.07894663,115440.0,115430.0,0.90313518]
[1761582852758,0.07894663,115440.0,115430.0,1.379339]
[1761582853814,0.07894663,115440.0,115430.0,1.08299419]
[1761582854018,0.07894663,115440.0,115430.0,1.469379]
[1761582854222,0.07894663,115440.0,115430.0,1.08299419]
[1761582854424,0.07894663,115440.0,115430.0,1.469379]
[1761582854830,0.07894663,115440.0,115430.0,1.474379]
[1761582854970,0.07894663,115440.0,115430.0,1.08799419]
[1761582855181,0.07894663,115440.0,115430.0,1.469379]
[1761582855672,0.07894663,115440.0,115430.0,1.472379]
[1761582856641,0.07894663,115440.0,115430.0,1.08599419]
[1761582856942,0.2672068,115440.0,115430.0,0.20986]
[1761582857167,0.2672068,115440.0,115430.0,0.97236518]
[1761582857744,0.2672068,115440.0,115430.0,0.76936]
[1761582857963,0.2672068,115440.0,115430.0,0.7961]
[1761582858170,0.2682068,115440.0,115430.0,0.96936518]
[1761582858751,0.2531968,115440.0,115430.0,0.99317518]
[1761582859024,0.2531968,115440.0,115430.0,1.08299419]
[1761582859244,0.2531968,115440.0,115430.0,0.99317518]
[1761582859441,0.24512647,115440.0,115430.0,0.99317518]
[1761582859775,0.24412647,115440.0,115430.0,0.99317518]
[1761582861608,0.0708763,115440.0,115430.0,0.99317518]
[1761582862020,0.0708763,115440.0,115430.0,1.08299419]
[1761582862194,0.0708763,115440.0,115430.0,1.37955999]
[1761582863005,0.0708763,115440.0,115430.0,1.469379]
[1761582863210,0.0708763,115440.0,115430.0,1.809379]
[1761582864326,0.0708763,115440.0,115430.0,1.812379]
[1761582864515,0.0708763,115440.0,115430.0,1.90219801]
[1761582864953,0.0708763,115440.0,115430.0,1.5158132]
[1761582865083,0.0708763,115440.0,115430.0,1.90219801]
[1761582866923,0.0708763,115440.0,115430.0,1.89919801]
[1761582867135,0.0708763,115440.0,115430.0,1.90419801]
[1761582867490,0.0708763,115440.0,115430.0,1.94038029]
[1761582870450,0.0708763,115440.0,115430.0,1.814379]
[1761582871751,0.0708763,115440.0,115430.0,1.81416697]
[1761582876983,0.0708763,115440.0,115430.0,1.22492697]
[1761582877178,0.0708763,115440.0,115430.0,1.79015697]
[1761582877378,0.0865063,115440.0,115430.0,1.81472697]
[1761582877609,0.0708763,115440.0,115430.0,1.81472697]
[1761582879230,0.0708763,115440.0,115430.0,1.42855419]
[1761582879650,0.0708763,115440.0,115430.0,1.81472697]
[1761582879867,0.0708763,115440.0,115430.0,1.79015697]
[1761582880093,0.0708763,115440.0,115430.0,1.81472697]
[1761582880878,0.0708763,115440.0,115430.0,0.38512518]
[1761582880879,0.25975647,115440.0,115430.0,0.38512518]
[1761582881092,0.28335647,115440.0,115430.0,0.62148]
[1761582881311,0.28335647,115440.0,115430.0,0.77416]
[1761582882437,0.28335647,115440.0,115430.0,0.18512]
[1761582882655,0.28435647,115440.0,115430.0,0.76916]
[1761582882908,0.28435647,115440.0,115430.0,0.77216]
[1761582883130,0.24512647,115440.0,115430.0,0.97059518]
[1761582883353,0.24512647,115440.0,115430.0,0.99516518]
[1761582883567,0.24512647,115440.0,115430.0,0.8219]
[1761582884012,0.24512647,115440.0,115430.0,1.38133796]
[1761582884249,0.24512647,115440.0,115430.0,1.20807278]
[1761582884423,0.26075647,115440.0,115430.0,0.79733]
[1761582885069,0.0718763,115440.0,115430.0,0.99516518]
[1761582885272,0.0718763,115440.0,115430.0,1.47115697]
[1761582885863,0.0708763,115440.0,115430.0,1.47115697]
[1761582886066,0.0865063,115440.0,115430.0,1.06041419]
[1761582886263,0.0865063,115440.0,115430.0,1.44658697]
[1761582886441,0.0708763,115440.0,115430.0,1.47115697]
[1761582886648,0.0708763,115440.0,115430.0,1.47415697]
[1761582886858,0.0708763,115440.0,115430.0,1.08498419]
[1761582887062,0.0708763,115440.0,115430.0,1.47115697]
[1761582887407,0.0708763,115440.0,115430.0,1.38433796]
[1761582888221,0.0708763,115440.0,115430.0,0.99816518]
[1761582888436,0.0708763,115440.0,115430.0,1.38433796]
[1761582889820,0.0708763,115440.0,115430.0,1.72433796]
[1761582890255,0.0708763,115440.0,115430.0,1.73899607]
[1761582890993,0.0708763,115440.0,115430.0,1.73599607]
[1761582891407,0.0708763,115440.0,115430.0,1.74099607]
[1761582892441,0.0708763,115440.0,115430.0,1.35482329]
[1761582892646,0.0708763,115440.0,115430.0,1.74099607]
[1761582894021,0.0708763,115440.0,115430.0,1.35482329]
[1761582894221,0.0708763,115440.0,115430.0,1.71642607]
[1761582894483,0.0708763,115440.0,115430.0,1.74099607]
[1761582894871,0.0865063,115440.0,115430.0,1.69024796]
[1761582895073,0.0865063,115440.0,115430.0,1.70176796]
[1761582895438,0.0708763,115440.0,115430.0,1.72633796]
[1761582898002,0.0708763,115440.0,115430.0,2.11251074]
[1761582898229,0.0708763,115440.0,115430.0,1.72633796]
[1761582898409,0.0708763,115440.0,115430.0,1.42998419]
[1761582898560,0.0708763,115440.0,115430.0,1.81615697]
[1761582899159,0.0708763,115440.0,115430.0,1.72633796]
[1761582899776,0.0708763,115440.0,115430.0,1.72558796]
[1761582899982,0.0708763,115440.0,115430.0,1.72476796]
[1761582905169,0.0860163,115440.0,115430.0,0.72573518]
[1761582905373,0.0860163,115440.0,115430.0,0.59376518]
[1761582905650,0.0708763,115440.0,115430.0,1.38376796]
[1761582905849,0.0708763,115440.0,115430.0,1.47358697]
[1761582906058,0.0708763,115440.0,115430.0,1.46858697]
[1761582906469,0.0708763,115440.0,115430.0,1.47158697]
[1761582906676,0.0708763,115440.0,115430.0,1.38176796]
[1761582907703,0.0708763,115440.0,115430.0,0.99559518]
[1761582907925,0.1088863,115440.0,115430.0,0.95686518]
[1761582908349,0.1088863,115440.0,115430.0,1.35905796]
[1761582908350,0.0860163,115440.0,115430.0,1.35905796]
[1761582908759,0.0860163,115440.0,115430.0,1.35605796]
[1761582909174,0.25926647,115440.0,115430.0,0.97288518]
[1761582909436,0.0860163,115440.0,115430.0,0.96988518]
[1761582909812,0.0708763,115440.0,115430.0,1.4089706]
[1761582910025,0.0708763,115440.0,115430.0,1.37876796]
[1761582911492,0.0708763,115440.0,115430.0,0.78980796]
[1761582911701,0.0708763,115440.0,115430.0,0.99259518]
[1761582912013,0.0708763,115440.0,115430.0,1.37876796]
[1761582912428,0.0708763,115440.0,115430.0,0.99259518]
[1761582912632,0.0860163,115440.0,115430.0,1.34003796]
[1761582912834,0.0860163,115440.0,115430.0,0.96988518]
[1761582913018,0.0860163,115440.0,115430.0,1.35605796]
[1761582913223,0.0708763,115440.0,115430.0,1.37876796]
[1761582913852,0.0708763,115440.0,115430.0,0.99259518]
[1761582914062,0.28213647,115440.0,115430.0,0.18012]
[1761582914283,0.28213647,115440.0,115430.0,0.94234518]
[1761582915200,0.0860163,115440.0,115430.0,1.35605796]
[1761582917416,0.0708763,115440.0,115430.0,1.37876796]
[1761582917740,0.0860163,115440.0,115430.0,0.96988518]
[1761582917940,0.0860163,115440.0,115430.0,1.35605796]
[1761582918351,0.0708763,115440.0,115430.0,0.96988518]
[1761582918587,0.0708763,115440.0,115430.0,1.35605796]
[1761582918946,0.1088863,115440.0,115430.0,1.32851796]
[1761582919321,0.0708763,115440.0,115430.0,1.34453796]
[1761582919445,0.25926647,115440.0,115430.0,1.35605796]
[1761582919879,0.0708763,115440.0,115430.0,1.28872796]
[1761582920091,0.0708763,115440.0,115430.0,1.71854697]
[1761582921489,0.0708763,115440.0,115430.0,1.72154697]
[1761582921701,0.0708763,115440.0,115430.0,1.33537419]
[1761582921901,0.0708763,115440.0,115430.0,1.72154697]
[1761582922199,0.0708763,115440.0,115430.0,1.63172796]
[1761582922575,0.0708763,115440.0,115430.0,2.01790074]
[1761582922976,0.0708763,115440.0,115430.0,1.63172796]
[1761582923335,0.0708763,115440.0,115430.0,2.01790074]
[1761582923677,0.0708763,115440.0,115430.0,2.10771975]
[1761582923907,0.0708763,115440.0,115430.0,2.19753876]
[1761582924205,0.0708763,115440.0,115430.0,2.19453876]
[1761582924375,0.0708763,115440.0,115430.0,2.19953876]
[1761582924791,0.0708763,115440.0,115430.0,2.28957876]
[1761582925598,0.0708763,115440.0,115430.0,1.81358697]
[1761582928466,0.00011763,115470.0,115460.0,0.17322016]
[1761582928640,0.00026293,115470.0,115460.0,1.16490572]
[1761582928841,0.00026293,115470.0,115460.0,1.20468572]
[1761582929283,0.00026293,115470.0,115460.0,0.81851294]
[1761582929662,0.00026293,115470.0,115460.0,0.43234016]
[1761582929865,0.00126293,115470.0,115460.0,0.43234016]
[1761582930291,0.05272293,115470.0,115460.0,0.76210016]
[1761582930691,0.00126293,115470.0,115460.0,0.80188016]
[1761582931027,0.01546293,115470.0,115460.0,0.77775016]
[1761582931394,0.02788293,115470.0,115460.0,0.77775016]
[1761582931748,0.00026293,115470.0,115460.0,0.80188016]
[1761582934025,0.00026293,115470.0,115460.0,0.80188016]
[1761582934342,0.00026293,115470.0,115460.0,0.89169917]
[1761582934343,0.00088037,115470.0,115460.0,0.89169917]
[1761582934922,0.00088037,115470.0,115460.0,0.80188016]
[1761582936163,0.00088037,115470.0,115460.0,0.89192016]
[1761582936365,0.00088037,115470.0,115460.0,1.27802444]
[1761582936520,0.00088037,115470.0,115460.0,0.89192016]
[1761582937963,0.01608037,115470.0,115460.0,0.86779016]
[1761582938175,0.00088037,115470.0,115460.0,0.89192016]
[1761582938940,0.00088037,115470.0,115460.0,0.89169917]
[1761582939156,0.00088037,115470.0,115460.0,1.27780345]
[1761582940909,0.00088037,115470.0,115460.0,0.89169917]
[1761582941115,0.00088037,115470.0,115460.0,1.27780345]
[1761582941744,0.00088037,115470.0,115460.0,0.80188016]
[1761582942818,0.00088037,115470.0,115460.0,1.18798444]
[1761582943040,0.00088037,115470.0,115460.0,1.27802444]
[1761582943255,0.00088037,115470.0,115460.0,0.89192016]
[1761582943480,0.00088037,115470.0,115460.0,1.27802444]
[1761582944099,0.00088037,115470.0,115460.0,1.35992665]
[1761582945174,0.00088037,115470.0,115460.0,0.97382237]
[1761582945406,0.00088037,115470.0,115460.0,0.89192016]
[1761582946059,0.00088037,115470.0,115460.0,0.89184016]
[1761582947344,0.03992037,115470.0,115460.0,0.85206016]
[1761582947546,0.00088037,115470.0,115460.0,0.85206016]
[1761582947723,0.03992037,115470.0,115460.0,0.85206016]
[1761582947934,0.01608037,115470.0,115460.0,0.86771016]
[1761582948151,0.00088037,115470.0,115460.0,0.89184016]
[1761582948319,0.00088037,115470.0,115460.0,0.80180016]
[1761582948522,0.00088037,115470.0,115460.0,0.86577989]
[1761582948719,0.03992037,115470.0,115460.0,0.82599989]
[1761582948925,0.00088037,115470.0,115460.0,0.86577989]
[1761582949129,0.00088037,115470.0,115460.0,1.25188417]
[1761582949532,0.00088037,115470.0,115460.0,1.18790444]
[1761582949738,0.00088037,115470.0,115460.0,0.80180016]
[1761582950388,0.00088059,115470.0,115460.0,0.80180016]
[1761582950675,0.01608059,115470.0,115460.0,0.77767016]
[1761582951669,0.03992059,115470.0,115460.0,0.76202016]
[1761582953097,0.03992059,115470.0,115460.0,0.85206016]
[1761582954557,0.21312575,115470.0,115460.0,0.85206016]
[1761582955192,0.03992059,115470.0,115460.0,0.85206016]
[1761582955423,0.21312575,115470.0,115460.0,0.85206016]
[1761582955878,0.03992059,115470.0,115460.0,0.85206016]
[1761582956103,0.03920059,115470.0,115460.0,0.85206016]
[1761582956344,0.03920059,115470.0,115460.0,0.94187917]
[1761582956572,0.21240575,115470.0,115460.0,0.85206016]
[1761582959069,0.21340575,115470.0,115460.0,0.85206016]
[1761582960364,0.21340575,115470.0,115460.0,0.67884]
[1761582961290,0.21340575,115470.0,115460.0,0.85206016]
[1761582961498,0.04020059,115470.0,115460.0,0.85206016]
[1761582961714,0.21340575,115470.0,115460.0,0.94187917]
[1761582961918,0.21340575,115470.0,115460.0,0.85206016]
[1761582962741,0.30322476,115470.0,115460.0,0.29784]
[1761582962944,0.31133558,115470.0,115460.0,0.6788]
[1761582967719,0.31133558,115470.0,115460.0,0.45024]
[1761582967930,0.31133558,115470.0,115460.0,0.6788]
[1761582968126,0.35978869,115470.0,115460.0,0.6788]
[1761582968608,0.31133558,115470.0,115460.0,0.6788]
[1761582979614,0.32361558,115470.0,115460.0,0.6788]
[1761582985719,0.3422907,115470.0,115460.0,0.6788]
[1761582985933,0.3422907,115470.0,115460.0,0.09004]
[1761582985934,0.71847298,115470.0,115460.0,0.09004]
[1761582986150,0.71847298,115470.0,115460.0,0.67888]
[1761582986353,0.74446975,115470.0,115460.0,0.67888]
[1761582986561,0.70828747,115470.0,115460.0,0.67888]
[1761582987210,0.74446975,115470.0,115460.0,0.67888]
[1761582989714,0.70825834,115470.0,115460.0,0.67888]
[1761582989914,0.68226157,115470.0,115460.0,0.67888]
[1761582990439,0.34226157,115470.0,115460.0,0.58884]
[1761582991285,0.32358645,115470.0,115460.0,0.58884]
[1761582992262,0.34227625,115470.0,115460.0,0.58884]
[1761582993067,0.34227625,115470.0,115460.0,0.67888]
[1761582994239,0.33727625,115470.0,115460.0,0.67888]
[1761582994640,0.31858645,115470.0,115460.0,0.67888]
[1761582997134,0.22876744,115470.0,115460.0,0.67888]
[1761582997812,0.24746238,115470.0,115460.0,0.67888]
[1761582998241,0.22876744,115470.0,115460.0,0.67888]
[1761582998517,0.31858645,115470.0,115460.0,0.67888]
[1761583000572,0.33728033,115470.0,115460.0,0.67888]
[1761583001363,0.33728033,115470.0,115460.0,0.09004]
[1761583001563,0.33728033,115470.0,115460.0,0.67888]
[1761583001748,0.39188498,115470.0,115460.0,0.67888]
[1761583003711,0.76806726,115470.0,115460.0,0.67888]
[1761583003924,0.76806726,115470.0,115460.0,0.47108]
[1761583004134,0.79406493,115470.0,115460.0,0.67888]
[1761583004382,1.25808008,115470.0,115460.0,0.67888]
[1761583005469,1.25708008,115470.0,115460.0,0.67888]
[1761583005689,1.28820098,115470.0,115460.0,0.67888]
[1761583006311,1.29020098,115470.0,115460.0,0.67888]
[1761583007281,1.25908008,115470.0,115460.0,0.67888]
[1761583007526,1.29020098,115470.0,115460.0,0.67888]
[1761583009319,1.25908008,115470.0,115460.0,0.67888]
[1761583010893,1.26908007,115470.0,115460.0,0.67888]
[1761583011099,0.17328019,115420.0,115410.0,0.00033614]
[1761583011232,0.17328019,115420.0,115410.0,0.22893614]
[1761583011431,0.22219019,115420.0,115410.0,0.40223134]
[1761583011670,0.22219019,115420.0,115410.0,0.22893614]
[1761583011814,0.22219019,115420.0,115410.0,0.40223134]
[1761583012238,0.22219019,115420.0,115410.0,0.55511588]
[1761583012441,0.22219019,115420.0,115410.0,0.55811588]
[1761583013064,0.22219019,115420.0,115410.0,0.85599588]
[1761583014096,0.22219019,115420.0,115410.0,0.68270068]
[1761583014504,0.22219019,115420.0,115410.0,0.85599588]
[1761583018403,0.02628,115420.0,115410.0,1.34751198]
[1761583018603,0.03495,115430.0,115420.0,0.17328019]
[1761583018841,0.03495,115430.0,115420.0,0.94555147]
[1761583018994,0.05022,115430.0,115420.0,0.94555147]
[1761583019402,0.01126,115430.0,115420.0,0.97358147]
[1761583019668,0.01126,115440.0,115430.0,0.17326518]
[1761583019867,0.02653,115440.0,115430.0,0.71184082]
[1761583020187,0.02653,115440.0,115430.0,0.72752082]
[1761583020387,0.03495,115450.0,115440.0,0.17325017]
[1761583020590,0.01126,115450.0,115440.0,1.03799145]
[1761583020793,0.02653,115450.0,115440.0,0.28140017]
[1761583020995,0.02653,115450.0,115440.0,0.25668017]
[1761583021200,0.24510955,115450.0,115440.0,0.61478581]
[1761583021413,0.31327417,115450.0,115440.0,0.0554]
[1761583021750,0.31327417,115450.0,115430.0,0.17326518]
[1761583021751,0.17325017,115440.0,115430.0,0.17326518]
[1761583021950,0.11350901,115440.0,115430.0,0.76222518]
[1761583022183,0.12877901,115440.0,115430.0,1.14836082]
[1761583022580,0.03896,115440.0,115430.0,1.14836082]
[1761583022791,0.01527,115440.0,115430.0,1.25385983]
[1761583023220,0.03896,115440.0,115430.0,1.14836082]
[1761583024416,0.01527,115440.0,115430.0,1.16404082]
[1761583024615,0.20818691,115450.0,115440.0,0.17325017]
[1761583024796,0.31327592,115450.0,115440.0,0.55938581]
[1761583025519,0.14003901,115450.0,115440.0,0.17325017]
[1761583025722,0.31327417,115450.0,115440.0,0.55938581]
[1761583026858,0.31327417,115450.0,115440.0,0.17325017]
[1761583027059,0.31327417,115450.0,115430.0,1.17435882]
[1761583027277,0.02353,115440.0,115430.0,0.78822318]
[1761583027470,0.11634901,115450.0,115440.0,0.17325017]
[1761583027680,0.29784417,115450.0,115440.0,0.17325017]
[1761583027875,0.31364417,115450.0,115440.0,0.17325017]
[1761583028456,0.31364417,115450.0,115440.0,0.26329017]
[1761583029502,0.31364417,115450.0,115440.0,0.09004]
[1761583029784,0.36440873,115450.0,115440.0,0.09004]
[1761583029965,0.36440873,115450.0,115440.0,0.67896]
[1761583030518,0.36440873,115450.0,115440.0,0.29788]
[1761583030721,0.36440873,115450.0,115440.0,0.67896]
[1761583031593,0.32174759,115450.0,115440.0,0.67896]
[1761583031809,0.34041858,115450.0,115440.0,0.67896]
[1761583031998,0.32174759,115450.0,115440.0,0.67896]
[1761583032362,0.34041979,115450.0,115440.0,0.67896]
[1761583032568,0.34141979,115450.0,115440.0,0.67896]
[1761583033417,0.39496191,115450.0,115440.0,0.67896]
[1761583033560,2.26741519,115450.0,115440.0,0.09004]
[1761583033755,2.26741519,115450.0,115440.0,0.67896]
[1761583036026,0.90281419,115450.0,115440.0,0.67896]
[1761583040100,0.86663191,115450.0,115440.0,0.67896]
[1761583040297,0.82491207,115450.0,115440.0,0.67896]
[1761583043674,0.78872979,115450.0,115440.0,0.67896]
[1761583044279,0.82491207,115450.0,115440.0,0.67896]
[1761583045060,0.82491164,115450.0,115440.0,0.67896]
[1761583045622,0.71760164,115450.0,115440.0,0.67896]
[1761583046253,0.34141936,115450.0,115440.0,0.67896]
[1761583046454,0.31788936,115450.0,115440.0,0.67896]
[1761583046665,0.34141936,115450.0,115440.0,0.67896]
[1761583047079,0.32274716,115450.0,115440.0,0.67896]
[1761583047287,0.27215716,115450.0,115440.0,1.27935581]
[1761583047706,0.098922,115450.0,115440.0,1.27935581]
[1761583047935,0.26405417,115450.0,115440.0,1.27935581]
[1761583048159,0.26305417,115450.0,115440.0,1.27935581]
[1761583048840,0.08981901,115450.0,115440.0,1.27935581]
[1761583049289,0.19400145,115460.0,115450.0,0.17323516]
[1761583049502,0.27113976,115460.0,115450.0,0.5832008]
[1761583049692,0.0979196,115460.0,115450.0,0.5996308]
[1761583049909,0.10646901,115460.0,115450.0,0.5996308]
[1761583050536,0.2798149,115460.0,115450.0,0.5758008]
[1761583050973,0.00012573,115460.0,115450.0,0.68944981]
[1761583051855,0.01859115,115480.0,115470.0,0.17320516]
[1761583052071,0.28775737,115480.0,115470.0,0.7671808]
[1761583052287,0.28775737,115480.0,115470.0,0.7836108]
[1761583052503,0.27965917,115480.0,115470.0,0.7836108]
[1761583053139,0.27965917,115480.0,115470.0,1.0815308]
[1761583053340,0.27965917,115480.0,115470.0,0.52219]
[1761583053564,0.30271917,115480.0,115470.0,0.69539516]
[1761583053790,0.30271917,115480.0,115470.0,0.67896516]
[1761583054221,0.30271917,115480.0,115470.0,0.69539516]
[1761583054440,0.27970757,115480.0,115470.0,0.69539516]
[1761583056440,4.84e-05,115480.0,115470.0,0.73919539]
[1761583056652,0.27970757,115480.0,115470.0,0.26328516]
[1761583056861,0.27970757,115480.0,115470.0,0.86855516]
[1761583057284,0.30276757,115480.0,115470.0,0.86855516]
[1761583057732,0.30276757,115480.0,115470.0,0.45048]
[1761583057961,0.30276757,115480.0,115470.0,0.85228516]
[1761583058187,4.84e-05,115480.0,115470.0,1.66434555]
[1761583058405,4.84e-05,115480.0,115470.0,1.18849585]
[1761583058620,0.0166984,115480.0,115470.0,0.80462022]
[1761583058842,0.21294856,115480.0,115470.0,0.80462022]
[1761583059272,0.21294856,115480.0,115470.0,0.21562022]
[1761583059482,0.0397584,115480.0,115470.0,0.80498022]
[1761583059659,0.21294856,115480.0,115470.0,0.80498022]
[1761583060323,0.18988856,115480.0,115470.0,0.80498022]
[1761583060548,4.84e-05,115480.0,115470.0,0.82881022]
[1761583060763,4.84e-05,115480.0,115470.0,0.89089402]
[1761583060986,0.0166984,115480.0,115470.0,0.80498022]
[1761583061197,0.18988856,115480.0,115470.0,0.80498022]
[1761583061743,0.21294856,115480.0,115470.0,0.80498022]
[1761583061946,0.21294856,115480.0,115470.0,0.77891516]
[1761583062571,0.17320516,115470.0,115460.0,0.1992092]
[1761583062773,0.27970757,115480.0,115470.0,0.38096]
[1761583062945,0.26305757,115480.0,115470.0,0.471]
[1761583063287,0.34844072,115480.0,115470.0,0.45072]
[1761583063488,0.34844072,115480.0,115470.0,0.67928]
[1761583064067,0.30276757,115480.0,115470.0,0.67928]
[1761583064504,0.30243214,115480.0,115470.0,0.67928]
[1761583068242,0.27937214,115480.0,115470.0,0.69571]
[1761583069310,0.26272214,115480.0,115470.0,0.89274516]
[1761583069424,0.27937214,115480.0,115470.0,0.89274516]
[1761583069870,0.26272214,115480.0,115470.0,0.89274516]
[1761583070075,0.27937214,115480.0,115470.0,0.86891516]
[1761583070278,0.21673397,115490.0,115470.0,0.89274516]
[1761583070481,0.31462889,115490.0,115470.0,0.89274516]
[1761583071396,0.18984016,115480.0,115470.0,0.85248516]
[1761583071794,0.18984016,115480.0,115470.0,0.86891516]
[1761583072216,0.19792021,115480.0,115470.0,0.86891516]
[1761583072411,0.18984016,115480.0,115470.0,0.86891516]
[1761583073529,0.21290016,115480.0,115470.0,0.85248516]
[1761583073933,0.21290016,115480.0,115470.0,0.67928]
[1761583074152,0.22098565,115480.0,115470.0,0.09004]
[1761583074329,0.36044397,115480.0,115470.0,0.67928]
[1761583074542,0.31080466,115480.0,115470.0,0.67928]
[1761583080329,0.00808549,115480.0,115470.0,0.86802516]
[1761583080552,0.02403549,115480.0,115470.0,1.27773585]
[1761583080933,0.00808549,115480.0,115470.0,1.27773585]
[1761583081427,0.02403549,115480.0,115470.0,0.86802516]
[1761583081654,0.00808549,115480.0,115470.0,0.89170516]
[1761583082244,0.24138442,115480.0,115470.0,0.67928]
[1761583082446,0.26510931,115480.0,115470.0,0.67928]
[1761583082691,0.21973565,115480.0,115470.0,0.67928]
[1761583083674,0.30955466,115480.0,115470.0,0.67928]
[1761583083853,0.32824724,115480.0,115470.0,0.67928]
[1761583084096,0.30573724,115480.0,115470.0,0.69482]
[1761583084297,0.30573724,115480.0,115470.0,0.7185]
[1761583084498,0.32824724,115480.0,115470.0,0.67928]
[1761583084705,0.30955466,115480.0,115470.0,0.67928]
[1761583087362,0.35987752,115480.0,115470.0,0.67928]
[1761583087660,0.35987752,115480.0,115470.0,0.09004]
[1761583087661,0.37857039,115480.0,115470.0,0.09004]
[1761583087887,0.37857039,115480.0,115470.0,0.6794]
[1761583088106,0.32824753,115480.0,115470.0,0.6794]
[1761583089443,0.32824733,115480.0,115470.0,0.6794]
[1761583090119,0.30955466,115480.0,115470.0,0.85260516]
[1761583090560,0.30955466,115480.0,115470.0,0.6794]
[1761583092610,0.21973565,115480.0,115470.0,0.85260516]
[1761583093054,0.04654549,115480.0,115470.0,0.85260516]